bitfinex/quotes_ETHUSD_20220226
["timestamp","ask_amount","ask_price","bid_price","bid_amount"]
[1645849309575,1.03557218,2809.8,2809.1,1.82114084]
[1645849309775,1.03557218,2809.8,2809.1,0.515]
[1645849309975,0.00517508,2809.3,2809.1,0.515]
[1645849310573,0.02069723,2809.7,2809.1,0.515]
[1645849310574,1.13024888,2809.9,2809.1,0.515]
[1645849310774,0.00402443,2809.8,2809.1,0.515]
[1645849310976,1.13024888,2809.9,2809.1,0.515]
[1645849311174,1.01340092,2809.8,2809.1,1.53459898]
[1645849311376,1.01742535,2809.8,2809.1,1.53459898]
[1645849311575,1.01742535,2809.8,2809.1,0.815]
[1645849311777,0.00402443,2809.8,2809.1,0.815]
[1645849312034,1.13024888,2809.9,2809.1,0.815]
[1645849312035,1.13024888,2809.9,2809.1,0.8140125]
[1645849312227,0.00402443,2809.8,2809.1,0.8140125]
[1645849312429,1.13024888,2809.9,2809.1,0.8140125]
[1645849312629,0.00402443,2809.8,2809.2,3.5]
[1645849312828,0.00402443,2810.1,2809.5,1.31538399]
[1645849313029,0.00402443,2810.1,2809.2,4.6423]
[1645849313030,1.3766874,2810.2,2809.6,0.515]
[1645849313227,1.3766874,2810.2,2809.5,0.515]
[1645849313228,0.00402443,2810.1,2809.5,0.515]
[1645849313428,1.3766874,2810.2,2809.5,0.00335463]
[1645849313632,1.3766874,2810.2,2809.5,0.51835463]
[1645849314027,1.3766874,2810.2,2809.5,0.81835463]
[1645849314433,1.3766874,2810.2,2809.5,0.815]
[1645849314629,0.00517425,2810.0,2809.5,1.98530459]
[1645849314831,0.00517425,2810.0,2809.5,0.82017507]
[1645849315632,1.3766874,2810.2,2809.5,0.815]
[1645849315869,0.00486771,2809.9,2809.5,0.81986831]
[1645849316877,0.00402443,2810.1,2809.5,0.815]
[1645849317177,0.00486777,2809.8,2809.5,0.81986828]
[1645849317378,0.00486777,2809.8,2809.5,4.31986828]
[1645849317779,0.00486777,2809.8,2809.5,1.81986828]
[1645849317978,0.00402443,2810.4,2809.5,1.9573]
[1645849318177,0.00402443,2810.4,2809.5,0.9573]
[1645849318578,0.00402443,2810.4,2810.1,1.02111922]
[1645849318880,0.01102443,2810.8,2809.9,0.515]
[1645849319078,0.00402443,2810.5,2809.9,0.515]
[1645849319279,0.007,2810.6,2809.9,0.515]
[1645849319830,0.007,2810.6,2809.9,0.815]
[1645849320033,4.47691838,2812.0,2810.2,3.5]
[1645849320234,3.7997922,2812.0,2810.5,6.432]
[1645849320436,3.7997922,2812.0,2810.9,6.432]
[1645849320835,3.7997922,2812.0,2811.0,0.815]
[1645849320836,0.00182154,2811.1,2811.0,0.815]
[1645849321239,0.00182154,2811.1,2811.0,0.515]
[1645849321440,0.00182154,2811.1,2810.8,0.3]
[1645849321636,0.3574,2811.7,2810.7,0.515]
[1645849322035,0.0051742,2811.2,2810.7,0.515]
[1645849322237,0.0051742,2811.2,2810.2,0.1421]
[1645849322238,1.779308,2811.1,2810.2,0.1421]
[1645849322440,1.779308,2811.1,2810.1,0.25]
[1645849322638,1.779308,2811.1,2809.9,8.0654]
[1645849322639,1.921608,2811.1,2809.9,7.5504]
[1645849322840,1.921608,2811.1,2809.9,7.4081]
[1645849323283,0.00517474,2810.7,2809.9,7.9231]
[1645849323482,0.00517474,2810.7,2810.1,1.16490348]
[1645849323684,0.00517474,2810.7,2810.2,0.515]
[1645849324085,1.421908,2811.1,2810.2,0.515]
[1645849324483,0.00517492,2810.6,2810.2,0.515]
[1645849325288,1.779308,2811.1,2810.0,0.1423]
[1645849325689,0.00517498,2810.5,2810.0,0.1423]
[1645849326088,0.00517498,2810.5,2810.0,0.6573]
[1645849326488,1.24301373,2810.6,2810.0,1.74307301]
[1645849326694,3.86140393,2811.0,2810.0,0.6573]
[1645849326891,0.00517515,2810.4,2809.5,0.00517671]
[1645849327137,0.36257515,2810.4,2809.5,0.00517671]
[1645849327340,0.3574,2810.2,2809.5,0.00517671]
[1645849327736,0.3574,2810.2,2809.2,4.8272]
[1645849327737,0.3574,2810.2,2809.8,1.27635692]
[1645849328038,0.00517563,2810.0,2809.5,0.00517645]
[1645849328840,0.00400393,2810.4,2809.2,7.2739]
[1645849329039,0.00400393,2810.4,2809.6,1.29995513]
[1645849329040,1.24424998,2810.3,2809.6,1.29995513]
[1645849329243,0.005006,2809.9,2809.6,1.29995513]
[1645849329439,0.16231936,2810.5,2809.6,1.29995513]
[1645849329641,0.02001936,2810.5,2809.6,1.29995513]
[1645849329841,0.02001936,2810.5,2809.6,1.59995513]
[1645849330042,0.1423,2810.8,2809.7,0.515]
[1645849330244,3.4118,2810.9,2809.7,0.515]
[1645849330644,1.10571497,2810.6,2809.7,0.515]
[1645849330886,3.4118,2810.9,2809.7,0.515]
[1645849332090,1.07740252,2810.8,2810.2,1.2682413]
[1645849332290,1.4988,2810.9,2810.2,1.5682413]
[1645849332490,1.1414,2810.9,2810.2,1.2682413]
[1645849332689,1.2374,2811.2,2810.2,1.2682413]
[1645849332888,0.1423,2811.3,2810.2,1.2682413]
[1645849332889,0.00181742,2810.6,2810.2,1.2682413]
[1645849333092,0.00181742,2810.6,2810.3,3.5]
[1645849333291,0.00181742,2810.6,2810.4,0.515]
[1645849333694,0.3574,2811.4,2810.8,1.14880429]
[1645849334092,0.02069632,2811.1,2810.8,1.14880429]
[1645849334843,0.3574,2811.5,2810.8,1.14880429]
[1645849335239,0.00517432,2811.1,2810.6,0.515]
[1645849336040,0.00398318,2811.4,2810.6,0.515]
[1645849336240,0.36138318,2811.4,2810.6,0.515]
[1645849336440,0.00517444,2811.0,2810.6,0.515]
[1645849337243,0.00398318,2811.3,2810.6,0.515]
[1645849337445,1.44043099,2811.3,2810.6,0.515]
[1645849337646,0.0051745,2810.9,2810.6,0.515]
[1645849338472,0.00398318,2811.5,2810.6,0.515]
[1645849338875,0.00517456,2810.9,2810.6,0.515]
[1645849339677,0.00398318,2811.2,2810.6,0.515]
[1645849339875,1.09590999,2811.3,2810.6,0.515]
[1645849340079,0.00517456,2810.9,2810.6,0.515]
[1645849340878,0.00398318,2811.5,2810.6,0.515]
[1645849341278,0.00517456,2810.9,2810.6,0.515]
[1645849342128,1.35939641,2811.4,2810.8,1.27155405]
[1645849342333,0.00517456,2810.9,2810.8,1.27155405]
[1645849343336,1.71275023,2811.5,2810.8,1.27155405]
[1645849343532,1.71275023,2811.5,2810.7,1.3]
[1645849343533,0.00517444,2811.0,2810.7,1.3]
[1645849343732,0.00517444,2811.0,2810.6,0.815]
[1645849344334,0.00517444,2811.0,2810.7,3.5]
[1645849344536,3.93799217,2812.0,2810.8,0.515]
[1645849344734,0.00398318,2811.8,2810.8,0.515]
[1645849344936,0.00398318,2811.8,2810.8,0.815]
[1645849344937,0.0051745,2810.9,2810.8,0.815]
[1645849345884,0.00398318,2811.8,2810.9,1.40797134]
[1645849345885,1.19865649,2811.5,2810.9,1.40797134]
[1645849346084,0.00517444,2811.0,2810.8,0.815]
[1645849346280,0.00517444,2811.0,2810.8,1.115]
[1645849346683,0.00517444,2811.0,2810.9,3.5]
[1645849346886,3.72447002,2812.0,2811.0,0.3574]
[1645849347083,3.72447002,2812.0,2811.1,4.015]
[1645849347282,0.0206944,2811.5,2811.1,5.015]
[1645849347586,0.0206944,2811.5,2811.1,1.815]
[1645849347782,0.0206944,2811.5,2811.1,0.815]
[1645849348180,1.34188695,2811.9,2811.1,0.515]
[1645849348382,1.69928695,2811.9,2811.1,0.515]
[1645849348582,3.72447002,2812.0,2811.1,0.515]
[1645849348782,4.08187002,2812.0,2811.1,0.515]
[1645849349184,4.08187002,2812.0,2810.8,1.94467382]
[1645849349634,1.1880824,2811.5,2811.2,0.00337603]
[1645849350235,3.72447002,2812.0,2811.2,0.00337603]
[1645849350432,3.72447002,2812.0,2810.8,1.94467382]
[1645849350631,0.3574,2811.9,2810.8,1.94467382]
[1645849350832,0.3574,2811.9,2811.2,0.00337603]
[1645849351235,1.05277038,2811.5,2811.2,0.00337603]
[1645849351635,1.05277038,2811.5,2810.8,1.94467382]
[1645849352036,0.00517079,2811.5,2811.2,0.0051714]
[1645849352841,1.1818,2811.8,2810.8,0.3]
[1645849353039,1.1818,2811.8,2810.9,0.515]
[1645849353296,0.00517079,2811.5,2811.2,0.0051714]
[1645849353487,1.03120128,2811.9,2811.3,1.88073562]
[1645849353687,1.03120128,2811.9,2811.3,3.06293562]
[1645849353887,1.02723868,2811.9,2811.3,1.9972]
[1645849354889,3.72447002,2812.0,2811.3,3.12279665]
[1645849355291,3.72447002,2812.0,2811.3,2.9972]
[1645849355495,3.72447002,2812.0,2811.3,1.9972]
[1645849355689,3.72447002,2812.0,2811.3,1.815]
[1645849355888,3.72447002,2812.0,2811.3,0.815]
[1645849356289,1.14746681,2811.9,2811.3,2.1154827]
[1645849356490,1.14746681,2811.9,2811.3,0.815]
[1645849356890,0.00179519,2811.8,2811.3,0.815]
[1645849357735,3.72447002,2812.0,2811.3,0.815]
[1645849357935,0.00517064,2811.7,2811.3,0.82017139]
[1645849358138,0.00517064,2811.7,2811.4,1.17031396]
[1645849358337,0.00517064,2811.7,2811.5,0.515]
[1645849358739,0.00517064,2811.7,2811.5,0.815]
[1645849358938,3.72447002,2812.0,2811.5,0.815]
[1645849359138,0.00517058,2811.7,2811.5,0.815]
[1645849360140,3.72843262,2812.0,2811.5,0.815]
[1645849360345,0.00517058,2811.7,2811.5,0.815]
[1645849361386,3.72843262,2812.0,2811.5,1.9343298]
[1645849361585,0.00517058,2811.7,2811.5,1.9343298]
[1645849362588,3.72447002,2812.0,2811.5,1.9343298]
[1645849362788,0.00517058,2811.7,2811.5,1.9343298]
[1645849363189,0.00517058,2811.7,2811.5,0.815]
[1645849363790,3.72447002,2812.0,2811.5,0.815]
[1645849363989,0.00517058,2811.7,2811.5,0.815]
[1645849364843,3.72447002,2812.0,2811.5,0.815]
[1645849365251,0.00517058,2811.7,2811.5,4.315]
[1645849365649,0.00517058,2811.7,2811.5,5.315]
[1645849366054,3.72447002,2812.0,2811.5,1.815]
[1645849366252,3.72447002,2812.0,2811.5,0.815]
[1645849366453,0.00517058,2811.7,2811.5,4.315]
[1645849366853,0.00517058,2811.7,2811.5,1.815]
[1645849367254,3.72447002,2812.0,2811.5,0.815]
[1645849367454,3.72447002,2812.0,2811.5,4.315]
[1645849367653,0.00517058,2811.7,2811.5,4.315]
[1645849367853,0.00517058,2811.7,2811.5,5.315]
[1645849368054,0.00517058,2811.7,2811.5,1.815]
[1645849368283,0.00517058,2811.7,2811.5,0.815]
[1645849368481,3.72447002,2812.0,2811.5,0.815]
[1645849368682,5.09918719,2812.0,2811.5,0.815]
[1645849368879,0.00517058,2811.7,2811.5,0.815]
[1645849369685,3.72447002,2812.0,2811.5,0.815]
[1645849369885,0.00517058,2811.7,2811.5,0.815]
[1645849370285,0.00517058,2811.7,2811.5,4.315]
[1645849370488,0.00517058,2811.7,2811.5,5.315]
[1645849370888,3.72447002,2812.0,2811.6,3.5]
[1645849371084,3.72447002,2812.0,2811.7,0.515]
[1645849371290,3.72447002,2812.0,2811.8,3.5]
[1645849371490,3.72447002,2812.0,2811.9,0.515]
[1645849373128,3.72447002,2812.0,2811.9,1.89519959]
[1645849374534,3.72345195,2812.0,2811.9,1.89519959]
[1645849374734,3.72345195,2812.0,2811.9,5.39519959]
[1645849375133,3.72345195,2812.0,2811.9,1.89519959]
[1645849375335,3.72345195,2812.0,2811.9,6.39519959]
[1645849375534,3.72345195,2812.0,2811.9,5.39519959]
[1645849375773,3.72345195,2812.0,2811.9,6.39519959]
[1645849376074,3.72345195,2812.0,2811.9,17.30519959]
[1645849376275,0.0039626,2812.4,2812.1,5.0]
[1645849376481,5.0896999,2812.8,2812.2,0.515]
[1645849376482,3.9491999,2812.8,2812.2,0.515]
[1645849376678,3.9491999,2812.8,2812.3,3.5]
[1645849376878,0.04092649,2812.7,2812.3,3.5]
[1645849377080,0.04092649,2812.8,2812.6,10.91]
[1645849377280,1.1743,2813.9,2812.6,10.91]
[1645849377281,1.1743,2813.9,2813.0,1.77705]
[1645849377487,0.8947479,2814.5,2813.5,1.01793055]
[1645849377488,0.81922618,2814.5,2813.5,1.01793055]
[1645849377680,1.50191566,2814.4,2813.6,0.515]
[1645849378285,1.50191566,2814.4,2813.7,3.5]
[1645849378286,0.3574,2814.4,2813.7,3.5]
[1645849378589,0.3074,2814.4,2813.8,0.515]
[1645849378783,1.2395,2814.7,2813.9,0.515]
[1645849378989,0.1421,2814.9,2813.9,0.515]
[1645849379637,0.00177354,2814.5,2813.9,0.515]
[1645849380241,0.00177354,2814.5,2813.6,1.3]
[1645849380432,0.00177354,2814.5,2813.6,0.815]
[1645849380433,0.3574,2814.4,2813.6,0.815]
[1645849380638,0.1421,2814.9,2813.7,3.5]
[1645849380831,0.1421,2814.9,2813.8,11.425]
[1645849380832,0.00517319,2814.3,2813.8,11.425]
[1645849381034,0.1,2815.0,2813.8,11.425]
[1645849381035,0.07586286,2815.0,2813.8,11.425]
[1645849381235,0.07586286,2815.0,2813.8,12.725]
[1645849381641,0.43326286,2815.0,2814.2,1.12822637]
[1645849381836,0.43326286,2815.0,2814.3,0.515]
[1645849382239,0.07586286,2815.0,2814.3,0.515]
[1645849382842,0.07586286,2815.0,2814.4,3.5]
[1645849383040,0.07586286,2815.0,2814.5,1.40307]
[1645849383288,0.07586286,2815.0,2814.6,3.5]
[1645849383492,0.07586286,2815.0,2814.7,0.515]
[1645849383895,1.46320927,2815.0,2814.7,0.515]
[1645849384094,0.07586286,2815.0,2814.7,0.515]
[1645849384594,0.07761927,2815.0,2814.7,0.815]
[1645849384992,0.07761927,2815.0,2814.7,0.9571]
[1645849385193,0.07761927,2815.0,2814.7,0.815]
[1645849385393,0.07586286,2815.0,2814.7,0.815]
[1645849385793,0.08103527,2815.0,2814.7,0.815]
[1645849386594,0.07586286,2815.0,2814.7,0.815]
[1645849386797,0.08103527,2815.0,2814.7,0.815]
[1645849387828,0.07586286,2815.0,2814.7,0.815]
[1645849388031,0.08103527,2815.0,2814.7,0.815]
[1645849388932,0.07586286,2815.0,2814.7,0.815]
[1645849389333,0.08103527,2815.0,2814.7,0.815]
[1645849389840,0.08103527,2815.0,2814.6,0.00517305]
[1645849390236,0.08103527,2815.0,2813.9,0.25]
[1645849390237,0.07586286,2815.0,2813.9,0.25]
[1645849390436,0.1421,2814.9,2814.6,0.00517305]
[1645849390872,0.3574,2814.8,2814.6,0.00517305]
[1645849391381,0.3574,2814.8,2813.8,0.765]
[1645849391578,0.0039441,2814.7,2814.6,0.00517311]
[1645849391783,0.3574,2814.8,2814.6,0.00517311]
[1645849392280,0.3074,2814.8,2814.6,0.00517311]
[1645849392581,0.3074,2814.8,2813.6,0.515]
[1645849392582,0.008496,2814.5,2813.6,0.515]
[1645849392779,0.008496,2814.5,2813.6,0.815]
[1645849393583,0.008496,2814.5,2813.9,1.43899109]
[1645849394094,0.008496,2814.5,2813.9,0.00342119]
[1645849394937,0.150596,2814.5,2813.2,3.5]
[1645849395137,1.25843314,2814.0,2813.1,0.65319997]
[1645849395543,0.1545401,2814.5,2813.1,0.95319997]
[1645849396043,0.29274007,2814.5,2813.1,0.45319997]
[1645849396442,0.29274007,2814.5,2813.7,0.0051742]
[1645849396642,1.249597,2814.0,2813.7,0.0051742]
[1645849396842,0.3074,2813.9,2813.7,0.0051742]
[1645849397346,0.3074,2813.9,2812.9,0.765]
[1645849397544,0.0039441,2813.8,2812.9,1.065]
[1645849397746,0.0039441,2813.8,2813.7,0.0051742]
[1645849397946,0.3074,2813.9,2813.7,0.0051742]
[1645849398388,5.4495,2813.8,2813.7,7.42e-05]
[1645849398586,5.4534441,2813.8,2812.9,0.25]
[1645849398786,0.4534441,2813.8,2812.4,0.515]
[1645849398984,0.4534441,2813.8,2812.4,0.015]
[1645849399388,0.3074,2813.2,2812.6,1.30583174]
[1645849399895,0.3074,2813.2,2812.5,0.3]
[1645849400090,0.3074,2813.2,2812.4,0.015]
[1645849400889,0.3074,2813.2,2812.8,1.13090932]
[1645849401293,0.3074,2813.2,2812.7,0.30517541]
[1645849401492,0.0039441,2813.3,2812.7,0.30517541]
[1645849401691,0.0039441,2813.6,2812.7,0.00517541]
[1645849401891,0.0039441,2813.6,2812.1,5.56648541]
[1645849402127,0.0039441,2813.6,2812.2,1.40386]
[1645849402530,0.3613441,2813.6,2812.2,1.40386]
[1645849403129,1.40176065,2813.1,2812.5,1.41594516]
[1645849403328,1.40176065,2813.1,2812.5,0.515]
[1645849403532,0.3613441,2813.6,2812.5,0.515]
[1645849404732,1.42924732,2813.3,2812.7,1.14325429]
[1645849404932,1.42924732,2813.3,2812.7,0.64325429]
[1645849405335,1.42924732,2813.3,2812.6,0.3]
[1645849405533,1.42924732,2813.3,2812.5,0.515]
[1645849405985,1.42924732,2813.3,2812.6,0.00517569]
[1645849406184,0.0039441,2813.4,2812.6,0.00517569]
[1645849406987,0.0039441,2813.4,2812.5,0.515]
[1645849407191,0.0039441,2813.4,2812.6,0.00517572]
[1645849407392,0.0039441,2813.4,2812.7,1.31097472]
[1645849407796,0.0039441,2813.4,2812.7,1.82597472]
[1645849408493,1.36475823,2813.4,2812.7,1.82597472]
[1645849408895,1.36475823,2813.4,2812.7,0.515]
[1645849409098,0.0039441,2813.4,2812.7,0.515]
[1645849409541,0.0039441,2813.4,2812.7,0.815]
[1645849410735,1.26264154,2813.3,2812.7,0.815]
[1645849412434,1.26264154,2813.3,2812.7,0.81349467]
[1645849414087,0.0039441,2813.6,2812.7,0.81349467]
[1645849414894,1.5047441,2813.7,2812.7,0.81349467]
[1645849415288,1.28838454,2813.4,2812.7,2.01242192]
[1645849415888,1.28838454,2813.4,2812.7,0.81349467]
[1645849416696,1.5047441,2813.7,2812.7,0.81349467]
[1645849418038,1.5047441,2813.7,2812.6,0.30517585]
[1645849418039,1.21467731,2813.3,2812.6,0.30517585]
[1645849418237,1.21467731,2813.3,2812.6,0.00517585]
[1645849418437,0.3574,2813.4,2812.6,0.52017585]
[1645849419037,0.3574,2813.4,2812.6,0.515]
[1645849419239,0.3574,2813.4,2812.6,0.52017572]
[1645849420038,1.37763861,2813.4,2812.7,1.06099197]
[1645849420546,1.37763861,2813.4,2812.6,0.00517572]
[1645849420789,1.51973861,2813.4,2812.6,0.00517572]
[1645849421489,1.52366096,2813.4,2812.4,1.34635604]
[1645849421692,1.52366096,2813.4,2812.6,0.00517572]
[1645849422693,1.52366096,2813.4,2812.4,1.34635604]
[1645849422895,1.52366096,2813.4,2812.6,0.00517572]
[1645849423097,0.14602235,2813.4,2812.6,0.00517572]
[1645849423295,0.00392235,2813.4,2812.6,0.00517572]
[1645849423494,0.00392235,2813.6,2812.6,0.00517572]
[1645849423699,0.00392235,2813.6,2812.6,0.52017572]
[1645849423997,0.00392235,2813.6,2812.6,0.515]
[1645849424199,0.00392235,2813.6,2812.6,0.82017572]
[1645849424398,0.00392235,2813.6,2813.3,1.13509792]
[1645849424661,0.02461508,2813.9,2812.6,0.96227572]
[1645849424959,0.00392235,2813.6,2812.6,0.9571]
[1645849425261,0.02461571,2813.9,2812.6,0.96227588]
[1645849425864,0.02461571,2813.9,2813.0,1.36708364]
[1645849426166,0.02461571,2813.9,2813.8,1.0]
[1645849426167,0.00392235,2813.9,2813.8,1.0]
[1645849426364,0.14669597,2814.5,2813.8,1.0]
[1645849426365,0.00392235,2814.3,2813.8,2.502]
[1645849426563,0.14669597,2814.5,2813.8,2.502]
[1645849426564,0.02069333,2814.0,2813.8,1.502]
[1645849426765,0.02069333,2814.0,2813.8,1.6441]
[1645849427366,0.02069333,2814.0,2813.9,1.01560043]
[1645849427565,0.008496,2814.5,2813.9,1.53060043]
[1645849427766,0.00517341,2814.1,2813.9,1.53060043]
[1645849428166,0.00517341,2814.1,2813.9,5.03060043]
[1645849428400,0.00517341,2814.1,2814.0,3.5]
[1645849428602,0.008496,2814.5,2814.0,4.1571]
[1645849428803,0.008496,2814.5,2814.1,0.14301717]
[1645849429003,0.008496,2814.5,2814.2,0.515]
[1645849429805,0.008496,2814.5,2814.3,3.5]
[1645849430007,0.008496,2814.5,2814.3,0.515]
[1645849430204,0.008496,2814.5,2814.3,1.515]
[1645849430205,0.01357203,2814.5,2814.3,1.515]
[1645849430406,0.01357203,2814.5,2814.4,3.5]
[1645849430603,0.01357203,2814.5,2814.3,0.515]
[1645849430807,0.01357203,2814.5,2814.4,1.30581961]
[1645849431004,0.008496,2814.5,2814.4,1.30581961]
[1645849431407,0.01357197,2814.5,2814.4,1.30581961]
[1645849432232,0.008496,2814.5,2814.4,1.30581961]
[1645849434739,0.008496,2814.5,2814.4,4.80581961]
[1645849435136,0.008496,2814.5,2814.4,2.30581961]
[1645849435337,0.008496,2814.5,2814.4,1.30581961]
[1645849436181,0.00744314,2814.5,2814.4,1.30581961]
[1645849436584,0.00744314,2814.5,2814.4,5.27081961]
[1645849436884,0.00744314,2814.5,2814.4,6.27081961]
[1645849437088,0.00744314,2814.5,2814.4,6.57081961]
[1645849437289,0.00744314,2814.5,2814.4,3.07081961]
[1645849437689,0.00744314,2814.5,2814.4,5.57081961]
[1645849437891,0.00744314,2814.5,2814.4,6.57081961]
[1645849438291,0.00744314,2814.5,2814.4,3.07081961]
[1645849438690,0.00744314,2814.5,2814.4,5.57081961]
[1645849438890,0.00744314,2814.5,2814.4,6.57081961]
[1645849439094,0.00744314,2814.5,2814.4,3.07081961]
[1645849439290,0.00744314,2814.5,2814.4,5.57081961]
[1645849439542,0.00744314,2814.5,2814.4,6.57081961]
[1645849439736,0.00744314,2814.5,2814.4,3.07081961]
[1645849439937,0.05751898,2815.0,2814.4,7.75821961]
[1645849440137,0.05751898,2815.0,2814.4,6.75821961]
[1645849440339,0.05751898,2815.0,2814.4,7.75821961]
[1645849440742,0.00392235,2815.6,2814.5,7.8574]
[1645849440941,0.00392235,2815.7,2815.5,1.08045338]
[1645849441145,3.06651463,2815.9,2815.3,1.062]
[1645849441146,0.00392235,2815.8,2815.3,1.062]
[1645849441342,0.01791463,2815.9,2815.3,1.062]
[1645849442241,0.01791463,2815.9,2815.2,3.8]
[1645849442442,0.01791463,2815.9,2815.4,3.5]
[1645849442641,0.01791463,2815.9,2815.5,0.515]
[1645849442841,0.01791463,2815.9,2815.4,0.515]
[1645849443489,0.00517138,2815.8,2815.4,0.515]
[1645849443893,0.00517138,2815.8,2815.1,0.3]
[1645849444094,0.00517138,2815.8,2815.0,0.3]
[1645849444289,0.01791463,2815.9,2814.9,1.5739]
[1645849444489,1.18508817,2815.6,2814.9,2.6704565]
[1645849444789,0.00517168,2815.6,2814.9,1.0965565]
[1645849445390,0.01791463,2815.9,2814.9,1.0965565]
[1645849445796,0.00517193,2815.4,2814.8,0.3]
[1645849446097,0.00517193,2815.4,2814.7,0.25]
[1645849446297,0.00517193,2815.4,2814.7,0.3]
[1645849446496,0.00517193,2815.4,2814.5,2.4319]
[1645849446697,0.00392235,2815.7,2814.5,6.9319]
[1645849446895,0.00517217,2815.2,2815.0,1.18476469]
[1645849447132,0.00517217,2815.2,2814.7,0.515]
[1645849447336,0.00517217,2815.2,2814.5,2.4319]
[1645849447534,0.00517217,2815.2,2814.5,3.4319]
[1645849447733,0.00517217,2815.2,2814.5,2.4319]
[1645849447933,0.00392235,2815.7,2814.5,6.9319]
[1645849448134,0.00517241,2815.0,2814.6,1.0371803]
[1645849448941,1.42293272,2815.8,2814.6,1.0371803]
[1645849448942,1.40271402,2815.8,2814.6,1.0371803]
[1645849449232,1.76011402,2815.8,2814.6,1.0371803]
[1645849449433,0.00517247,2814.9,2814.6,1.0371803]
[1645849449636,0.00517247,2814.9,2814.5,3.7319]
[1645849449834,0.00517247,2814.9,2814.1,0.25091717]
[1645849450244,0.3574,2815.2,2814.1,0.25091717]
[1645849450789,0.3574,2815.2,2814.3,1.17437075]
[1645849450995,0.4995,2815.2,2814.1,0.25091717]
[1645849451795,0.4995,2815.2,2814.5,0.00517318]
[1645849451995,0.1421,2815.2,2814.5,0.00517318]
[1645849452199,0.19786716,2815.4,2814.5,0.00517318]
[1645849452200,0.1421,2815.3,2814.5,0.00517318]
[1645849452599,0.1421,2815.3,2814.1,1.63810033]
[1645849452999,0.1421,2815.3,2814.8,0.00517287]
[1645849453200,1.1813966,2814.9,2814.8,0.00517287]
[1645849454001,1.5387966,2814.9,2814.1,0.25091717]
[1645849454203,1.5387966,2814.9,2814.7,0.00517293]
[1645849454403,0.1421,2814.8,2814.7,0.00517293]
[1645849455045,0.1421,2814.8,2814.1,0.25091717]
[1645849455247,0.1421,2814.8,2814.1,0.00091717]
[1645849455643,0.14600283,2814.8,2814.1,0.00091717]
[1645849455853,0.3574,2814.5,2814.1,0.00091717]
[1645849456051,0.3574,2814.3,2813.1,4.1662]
[1645849456349,0.4995,2814.3,2813.1,4.1662]
[1645849456552,0.4995,2814.3,2814.2,0.0051736]
[1645849456852,1.84726758,2814.3,2814.2,0.0051736]
[1645849457148,1.70516758,2814.3,2814.2,0.0051736]
[1645849457550,1.70516758,2814.3,2813.3,0.25]
[1645849457750,1.70516758,2814.3,2814.1,0.00517366]
[1645849458781,1.70516758,2814.3,2813.3,1.54079687]
[1645849458982,1.70516758,2814.3,2813.3,1.04597059]
[1645849459386,1.70516758,2814.3,2813.1,0.3]
[1645849459785,12.61516758,2814.3,2812.9,1.18864]
[1645849460085,12.61516758,2814.3,2812.9,0.3]
[1645849460486,1.11702921,2813.7,2813.0,1.03056768]
[1645849460686,11.40490311,2814.4,2813.0,1.03056768]
[1645849460687,0.3574,2814.1,2813.0,1.03056768]
[1645849460884,11.2674,2814.1,2813.0,1.03056768]
[1645849461284,0.3574,2814.1,2813.0,1.03056768]
[1645849461890,1.29636222,2813.8,2813.0,1.03056768]
[1645849462139,1.29636222,2813.8,2813.0,0.53056768]
[1645849463444,11.19029997,2814.4,2813.0,0.53056768]
[1645849463445,4.7,2815.7,2813.8,0.22677439]
[1645849463643,4.7,2815.7,2814.3,0.01254848]
[1645849463841,0.00517795,2815.2,2814.4,0.515]
[1645849464043,0.00517795,2815.2,2814.7,0.3574]
[1645849464241,0.00517795,2815.2,2814.9,1.34623049]
[1645849464454,0.00517795,2815.2,2815.0,0.515]
[1645849464642,0.01791463,2815.9,2815.0,1.782]
[1645849464843,0.01791463,2815.9,2815.2,0.8879]
[1645849465042,0.01791463,2815.9,2815.3,4.3724]
[1645849465246,0.01791463,2815.9,2815.3,4.6724]
[1645849465461,0.01791463,2815.9,2815.4,1.3574]
[1645849465641,0.01791463,2815.9,2815.5,0.8724]
[1645849465896,0.01791463,2815.9,2815.6,5.94807056]
[1645849466195,0.01791463,2815.9,2815.6,7.81907056]
[1645849466394,0.01791463,2815.9,2815.7,0.3]
[1645849466595,0.01791463,2815.9,2815.8,0.515]
[1645849467995,0.01791463,2815.9,2815.8,4.015]
[1645849468198,0.01791463,2815.9,2815.8,5.015]
[1645849468596,0.01791463,2815.9,2815.8,1.515]
[1645849468796,0.01791463,2815.9,2815.8,0.515]
[1645849469400,0.01791463,2815.9,2815.8,4.015]
[1645849469659,0.01791463,2815.9,2815.8,7.947]
[1645849470257,0.01791463,2815.9,2815.8,11.447]
[1645849471368,0.02070393,2816.4,2816.0,4.8574]
[1645849471569,0.02070393,2816.4,2816.3,7.4802687]
[1645849471761,0.02070393,2816.4,2816.3,11.4952687]
[1645849471960,1.02263366,2817.3,2816.3,8.9952687]
[1645849472163,1.02263366,2817.3,2816.5,7.5]
[1645849472164,0.00388353,2817.3,2816.5,7.5]
[1645849472361,0.00388353,2817.6,2816.8,6.432]
[1645849472562,0.3574,2818.4,2816.9,0.515]
[1645849472563,0.26128353,2818.1,2816.9,0.515]
[1645849472762,0.1419,2818.0,2817.0,0.515]
[1645849473059,0.1419,2818.0,2816.9,0.515]
[1645849473484,0.1419,2818.0,2816.6,0.515]
[1645849473485,0.26302429,2817.6,2816.6,0.515]
[1645849473684,0.1419,2817.5,2816.5,0.515]
[1645849474289,0.1419,2817.5,2816.2,0.765]
[1645849474488,0.1419,2817.5,2816.7,1.05656161]
[1645849474692,3.0739356,2818.1,2816.8,4.015]
[1645849474693,0.00174076,2817.1,2816.8,4.015]
[1645849474889,0.00174076,2817.1,2816.8,0.515]
[1645849475089,0.00174076,2817.1,2816.8,1.515]
[1645849475288,0.00174076,2817.1,2816.8,0.515]
[1645849475490,0.3574,2818.3,2816.8,0.515]
[1645849475990,0.00517252,2817.1,2816.8,0.515]
[1645849476194,0.00517252,2817.1,2816.9,1.36908004]
[1645849476391,0.00517252,2817.1,2817.0,0.515]